bitfinex-derivatives/quotes_ETHF0:USTF0_20250405
["timestamp","ask_amount","ask_price","bid_price","bid_amount"]
[1743855167148,2.92171,1806.7,1806.5,2.98776]
[1743855167149,0.77515,1806.6,1806.5,2.98776]
[1743855167349,3.04065,1806.6,1806.5,4.25734773]
[1743855167648,3.04065,1806.6,1806.5,2.04474773]
[1743855168043,2.2655,1806.6,1806.5,2.04474773]
[1743855168237,3.04065,1806.6,1806.5,2.04474773]
[1743855168443,2.2655,1806.6,1806.5,1.30128151]
[1743855168648,2.2655,1806.6,1806.5,2.04481818]
[1743855169054,2.2655,1806.6,1806.5,2.04486697]
[1743855169850,2.2655,1806.6,1806.5,3.54026697]
[1743855170049,2.2655,1806.6,1806.5,4.28276697]
[1743855170951,2.2655,1806.6,1806.5,4.28276384]
[1743855173054,1.46854,1806.7,1806.6,0.77515]
[1743855173055,0.77514,1806.7,1806.6,0.77515]
[1743855173253,0.77514,1806.7,1806.6,3.62598609]
[1743855173444,2.99059,1806.8,1806.6,6.83378609]
[1743855173643,2.99059,1806.8,1806.7,0.74353609]
[1743855174459,2.99059,1806.8,1806.6,6.09025]
[1743855174660,2.99059,1806.8,1806.7,0.7436681]
[1743855175256,1.4936,1806.8,1806.7,1.5187781]
[1743855175561,1.4936,1806.8,1806.7,4.20205484]
[1743855175958,2.26866,1806.8,1806.7,3.42694484]
[1743855176261,2.26866,1806.8,1806.7,0.7436681]
[1743855176858,3.03756,1806.8,1806.7,0.7436681]
[1743855179963,0.77511,1806.7,1806.6,4.69814]
[1743855180162,2.22211,1806.7,1806.6,5.44192031]
[1743855180964,2.22211,1806.7,1806.6,5.44193232]
[1743855181263,2.22211,1806.7,1806.6,4.66679232]
[1743855181765,2.22211,1806.7,1806.6,3.95159232]
[1743855183162,2.22211,1806.7,1806.6,0.74379232]
[1743855183867,1.447,1806.7,1806.6,1.51894232]
[1743855184165,2.22211,1806.7,1806.6,2.04535071]
[1743855184464,2.22211,1806.7,1806.6,4.17895071]
[1743855186671,2.22211,1806.7,1806.6,4.17907513]
[1743855186975,2.22211,1806.7,1806.6,3.40392513]
[1743855187174,2.22211,1806.7,1806.6,3.4039465]
[1743855187364,2.22211,1806.7,1806.6,2.87749909]
[1743855187872,2.22211,1806.7,1806.6,3.65264909]
[1743855188263,2.22211,1806.7,1806.6,2.21924909]
[1743855189575,1.447,1806.7,1806.6,2.74570861]
[1743855189776,1.447,1806.7,1806.6,4.24940861]
[1743855190378,1.447,1806.7,1806.6,4.24943369]
[1743855191581,3.2078,1807.0,1806.6,3.47428369]
[1743855191774,1.4175,1806.9,1806.8,0.77505]
[1743855191973,2.19253,1806.9,1806.8,3.04326755]
[1743855192174,2.19253,1806.9,1806.8,2.26821106]
[1743855193985,2.19253,1806.9,1806.8,2.26804958]
[1743855195783,2.19253,1806.9,1806.8,2.26795309]
[1743855197781,2.19253,1806.9,1806.8,2.26792763]
[1743855199487,2.19253,1806.9,1806.8,3.04298763]
[1743855199785,2.19253,1806.9,1806.8,2.26792763]
[1743855201388,2.19252,1806.9,1806.8,0.74362817]
[1743855201682,2.90682,1806.9,1806.8,0.74362817]
[1743855204084,0.77509,1806.8,1806.6,3.70892]
[1743855204283,6.7198,1807.2,1806.7,3.95145544]
[1743855204485,2.26141,1807.0,1806.8,1.51869544]
[1743855204685,2.26141,1807.0,1806.9,1.45045544]
[1743855204888,2.26141,1807.0,1806.9,1.45040583]
[1743855207192,2.26141,1807.0,1806.9,2.88330583]
[1743855207392,2.26141,1807.0,1806.9,1.45040583]
[1743855208499,2.26141,1807.0,1806.9,1.45019558]
[1743855210693,2.26141,1807.0,1806.9,2.84719558]
[1743855214004,2.26141,1807.0,1806.9,2.84719718]
[1743855216702,2.26141,1807.0,1806.9,0.74339718]
[1743855216895,3.01141,1807.0,1806.9,0.74339718]
[1743855220410,2.26138,1807.0,1806.9,1.51841718]
[1743855220805,2.26138,1807.0,1806.9,2.94861718]
[1743855221609,2.26138,1807.0,1806.9,2.94900029]
[1743855221807,2.26138,1807.0,1806.9,3.66040029]
[1743855223807,2.26138,1807.0,1806.9,2.88538029]
[1743855225312,2.26138,1807.0,1806.9,0.74378029]
[1743855226705,2.26138,1807.0,1806.9,2.24088029]
[1743855227711,2.26138,1807.0,1806.9,3.01590029]
[1743855228513,2.26138,1807.0,1806.9,2.24079898]
[1743855229813,2.26138,1807.0,1806.9,0.74369898]
[1743855232112,0.77502,1806.9,1806.8,3.9167]
[1743855232315,2.99022,1806.9,1806.8,4.66053485]
[1743855236016,2.99022,1806.9,1806.8,1.45273485]
[1743855238719,2.99022,1806.9,1806.8,0.74383485]
[1743855239421,3.73862,1806.9,1806.8,0.74383485]
[1743855240416,0.77514,1806.7,1806.5,8.19046]
[1743855240626,0.7271,1806.6,1806.5,8.19046]
[1743855240825,0.7271,1806.6,1806.5,8.68570516]
[1743855240826,3.01145,1806.6,1806.5,8.68570516]
[1743855241023,3.01145,1806.6,1806.5,8.68572548]
[1743855241526,3.01145,1806.6,1806.5,8.15925707]
[1743855241728,3.01145,1806.6,1806.5,3.95175707]
[1743855242233,3.01145,1806.6,1806.5,3.2078]
[1743855245536,0.77519,1806.5,1806.4,44.31929233]
[1743855245735,2.20709,1806.5,1806.4,49.0448365]
[1743855246537,2.20709,1806.5,1806.4,48.2696065]
[1743855246736,1.4319,1806.5,1806.4,49.0448365]
[1743855248039,1.4319,1806.5,1806.4,49.04457422]
[1743855248832,2.20709,1806.5,1806.4,48.26934422]
[1743855249034,1.4319,1806.5,1806.4,49.04457422]
[1743855249435,1.4319,1806.5,1806.4,50.43217422]
[1743855249636,1.4319,1806.5,1806.4,49.68992233]
[1743855249834,1.4319,1806.5,1806.4,50.43196556]
[1743855250446,0.77513,1806.7,1806.5,0.77519]
[1743855250738,0.77513,1806.7,1806.6,0.7304]
[1743855251336,2.20753,1806.7,1806.6,0.7304]
[1743855253037,2.20753,1806.7,1806.6,3.9382]
[1743855253237,2.20753,1806.7,1806.6,0.7304]
[1743855254843,2.20753,1806.7,1806.6,1.50555]
[1743855255038,2.20753,1806.7,1806.6,2.1431]
[1743855255039,1.4324,1806.7,1806.6,2.1431]
[1743855255230,1.4324,1806.7,1806.6,2.91825]
[1743855255831,2.20751,1806.7,1806.6,2.91825]
[1743855256238,2.20751,1806.7,1806.6,3.66047619]
[1743855256442,2.20751,1806.7,1806.6,2.91825]
[1743855256637,2.20751,1806.7,1806.6,3.66047719]
[1743855256839,2.20751,1806.7,1806.6,2.91825]
[1743855257036,2.20751,1806.7,1806.6,3.66047652]
[1743855257239,2.20751,1806.7,1806.6,2.91825]
[1743855257741,2.20751,1806.7,1806.6,3.66051484]
[1743855258144,2.20751,1806.7,1806.6,3.66058185]
[1743855258735,2.20751,1806.7,1806.6,0.7304]
[1743855258932,0.77518,1806.6,1806.4,3.99129233]
[1743855259134,3.66428,1806.6,1806.4,3.99129233]
[1743855259448,3.66428,1806.6,1806.5,0.74246643]
[1743855259637,3.66428,1806.6,1806.4,3.99129233]
[1743855259840,2.19848,1806.6,1806.5,0.74246514]
[1743855260348,0.77519,1806.5,1806.4,0.00829233]
[1743855265054,3.98299,1806.5,1806.4,0.00829233]
[1743855265441,6.48299,1806.5,1806.4,0.00829233]
[1743855265645,1.93821,1806.3,1805.6,3.98334]
[1743855265847,0.77545,1805.9,1805.7,2.04379501]
[1743855266054,0.77543,1806.0,1805.8,41.54268313]
[1743855266250,3.2078,1806.1,1805.8,40.8]
[1743855266452,0.77545,1805.9,1805.8,40.8]
[1743855266755,0.78373233,1806.0,1805.8,41.54231838]
[1743855267057,0.00829233,1806.0,1805.8,40.8]
[1743855267253,0.78370233,1806.0,1805.8,42.97037]
[1743855267453,0.78370233,1806.0,1805.8,42.1949]
[1743855268760,0.77545,1805.9,1805.8,42.1949]
[1743855268959,0.77545,1805.9,1805.8,42.93690191]
[1743855269152,0.78372233,1806.0,1805.8,43.71239191]
[1743855269458,0.78372233,1806.0,1805.8,42.1949]
[1743855269758,0.00829233,1806.0,1805.8,42.1949]
[1743855270057,1.50565,1805.9,1805.8,42.1949]
[1743855270451,0.7302,1805.9,1805.8,42.1949]
[1743855270754,1.50565,1805.9,1805.8,42.1949]
[1743855271947,0.7302,1805.9,1805.8,42.97039]
[1743855272352,0.7302,1805.9,1805.8,43.66529]
[1743855272752,0.78373233,1806.0,1805.8,43.66529]
[1743855273752,0.00829233,1806.0,1805.8,43.66529]
[1743855273957,0.77545,1805.9,1805.8,42.8898]
[1743855274461,1.53205,1805.9,1805.8,42.8898]
[1743855275158,1.53205,1805.9,1805.8,43.66529]
[1743855275360,0.78371233,1806.0,1805.8,43.66529]
[1743855275560,0.78371233,1806.0,1805.9,1.431]
[1743855276262,0.77545,1805.9,1805.8,40.8]
[1743855276456,1.53205,1805.9,1805.8,40.8]
[1743855276655,2.28035,1805.9,1805.8,40.8]
[1743855276958,0.77549,1805.8,1805.7,3.9021]
[1743855277154,2.21929,1805.8,1805.7,3.2078]
[1743855277352,0.77558,1805.6,1805.5,3.2078]
[1743855277550,0.77558,1805.6,1805.3,3.2078]
[1743855277551,0.77566,1805.4,1805.3,3.2078]
[1743855278155,0.77571,1805.3,1805.2,40.8]
[1743855278559,0.77584,1805.0,1804.9,3.2078]
[1743855278764,0.77593,1804.8,1804.7,3.2078]
[1743855278962,0.77593,1804.8,1804.7,44.0078]
[1743855279165,0.77593,1804.8,1804.7,3.2078]
[1743855279363,2.19953,1804.8,1804.7,3.2078]
[1743855279564,1.4236,1804.8,1804.7,3.98376]
[1743855279765,2.19952,1804.8,1804.7,3.2078]
[1743855280258,1.4236,1804.8,1804.7,3.2078]
[1743855280565,2.19952,1804.8,1804.7,3.2078]
[1743855280768,1.4236,1804.8,1804.7,3.2078]
[1743855280965,1.4236,1804.8,1804.7,3.98376]
[1743855281165,1.4236,1804.8,1804.7,5.44886]
[1743855281365,1.4236,1804.8,1804.7,6.14686]
[1743855281557,0.00829233,1804.9,1804.8,0.77592]
[1743855281764,0.00829233,1804.9,1804.8,2.97992]
[1743855282068,0.00829233,1804.9,1804.8,47.01822147]
[1743855282272,1.4236,1805.3,1805.1,0.77578]
[1743855282466,2.19931,1805.3,1805.2,3.9467]
[1743855282773,2.19931,1805.3,1805.2,2.2259]
[1743855282969,2.19931,1805.3,1805.2,0.7389]
[1743855283170,2.19931,1805.3,1805.2,41.5389]
[1743855285273,0.00829233,1805.4,1805.3,0.77571]
[1743855285476,0.00829233,1805.4,1805.3,2.30181]
[1743855285775,0.00829233,1805.4,1805.3,1.5261]
[1743855285969,2.21935233,1805.4,1805.2,45.52243]
[1743855286165,2.21111,1805.3,1805.2,40.8]
[1743855286370,2.1637,1805.3,1805.1,0.00829233]
[1743855286572,1.4354,1805.2,1805.1,0.00829233]
[1743855286773,1.4354,1805.2,1805.1,40.80829233]
[1743855287380,2.21115,1805.2,1805.1,40.80829233]
[1743855288173,2.21115,1805.2,1805.1,0.00829233]
[1743855288881,0.77588,1804.9,1804.8,40.8]
[1743855289077,0.77592,1804.8,1804.7,0.7488]
[1743855289278,2.30202,1804.8,1804.7,0.7488]
[1743855290181,2.30202,1804.8,1804.7,41.5488]
[1743855291587,2.30202,1804.8,1804.6,3.2078]
[1743855291885,2.30202,1804.8,1804.7,0.7542]
[1743855292087,2.30202,1804.8,1804.7,2.1884]
[1743855292278,0.77589,1804.9,1804.7,2.96436]
[1743855292480,0.77592,1804.8,1804.7,0.7542]
[1743855292782,2.20092,1804.8,1804.7,0.7542]
[1743855292982,0.77596,1804.7,1804.6,44.0078]
[1743855293291,1.425,1804.7,1804.6,44.0078]
[1743855293484,1.425,1804.7,1804.6,44.78381]
[1743855293680,0.77587,1805.0,1804.6,45.442]
[1743855293988,0.77588,1804.9,1804.7,2.21013]
[1743855294190,0.77588,1804.9,1804.8,2.144]
[1743855295294,2.20086,1805.0,1804.8,2.91992]
[1743855295790,2.20086,1805.0,1804.9,1.3995]
[1743855296193,0.77583,1805.1,1804.9,2.17538]
[1743855296390,2.31353,1805.1,1804.9,2.17538]
[1743855296895,0.7283,1805.3,1805.1,0.77579]
[1743855297096,1.50401,1805.3,1805.2,0.7183]
[1743855297291,3.00661,1805.3,1805.2,2.1687]
[1743855301500,2.27831,1805.3,1805.2,2.1687]
[1743855302990,1.5026,1805.3,1805.2,2.94445]
[1743855303190,0.78398233,1805.4,1805.2,2.94445]
[1743855303396,2.21268233,1805.4,1805.3,1.5206]
[1743855303903,0.00829233,1805.4,1805.3,2.29631]
[1743855304398,0.00829233,1805.4,1805.3,6.60687237]
[1743855305904,0.00829233,1805.4,1805.3,9.10687237]
[1743855306305,0.00829233,1805.4,1805.3,7.13147503]
[1743855306506,0.00829233,1805.4,1805.3,6.60687237]
[1743855306709,0.00829233,1805.4,1805.3,7.13136081]
[1743855306899,0.00829233,1805.4,1805.3,7.13136056]
[1743855308206,0.00829233,1805.4,1805.3,7.13209729]
[1743855308504,0.00829233,1805.4,1805.3,7.13198966]
[1743855309906,0.00829233,1805.4,1805.3,9.63165596]
[1743855310105,0.00829233,1805.4,1805.3,10.39515596]
[1743855310305,0.00829233,1805.4,1805.3,7.89515596]
[1743855311505,0.00829233,1805.4,1805.3,7.37070269]
[1743855311807,0.00829233,1805.4,1805.3,7.37047062]
[1743855312101,0.00829233,1805.4,1805.3,7.89463124]
[1743855313204,1.5352,1805.7,1805.6,0.77558]
[1743855313603,1.5352,1805.7,1805.6,2.94668]
[1743855319614,2.31073,1805.7,1805.5,0.78389233]
[1743855319814,0.7097,1805.6,1805.5,0.78389233]
[1743855320008,2.2409,1805.6,1805.5,0.78389233]
[1743855320208,2.2409,1805.6,1805.5,3.99169233]
[1743855321716,1.5312,1805.6,1805.5,6.13232412]
[1743855322713,1.5312,1805.6,1805.5,6.13255673]
[1743855323610,1.5312,1805.6,1805.5,4.73235673]
[1743855323809,1.5312,1805.6,1805.5,3.99169233]
[1743855324316,1.5312,1805.6,1805.5,4.73281002]
[1743855327221,1.5312,1805.6,1805.5,5.25819732]
[1743855327419,1.5312,1805.6,1805.5,6.78899732]
[1743855328421,1.5312,1805.6,1805.5,6.79059696]
[1743855329013,1.5312,1805.6,1805.5,6.26507737]
[1743855329213,1.5312,1805.6,1805.5,4.73427737]
[1743855329815,2.2262,1805.6,1805.5,4.73427737]
[1743855330520,1.5312,1805.6,1805.5,5.26002458]
[1743855330719,1.5312,1805.6,1805.5,4.73427737]
[1743855331020,1.5312,1805.6,1805.5,5.26003529]
[1743855331914,1.5312,1805.6,1805.5,6.72299697]
[1743855333814,1.5312,1805.6,1805.5,6.72444486]
[1743855334017,1.5312,1805.6,1805.5,3.51664486]
[1743855334223,1.5312,1805.6,1805.5,6.72444486]
[1743855335623,1.5312,1805.6,1805.5,6.72473513]
[1743855337326,1.5312,1805.6,1805.5,6.72496006]
[1743855342719,1.5312,1805.6,1805.5,5.45389233]
[1743855342918,1.5312,1805.6,1805.5,6.72511192]
[1743855343731,0.71799233,1805.8,1805.7,0.77553]
[1743855343931,1.45789233,1805.8,1805.7,1.51993904]
[1743855344132,2.20209233,1805.8,1805.7,1.51993904]
[1743855344432,2.20209233,1805.8,1805.7,42.31993904]
[1743855344632,2.20209233,1805.8,1805.7,42.31991551]
[1743855345335,2.97758233,1805.8,1805.7,42.31991551]
[1743855345831,2.20209233,1805.8,1805.7,42.31991551]
[1743855347233,2.97758233,1805.8,1805.7,1.51991551]
[1743855348230,2.97758233,1805.8,1805.5,6.75309233]
[1743855348231,0.77557,1805.7,1805.5,0.00829233]
[1743855348433,0.7462,1805.6,1805.5,0.78390233]
[1743855348636,2.1919,1805.6,1805.5,1.52810476]
[1743855356739,2.96748,1805.6,1805.5,1.52810476]
[1743855359335,2.96748,1805.6,1805.5,1.52738765]
[1743855359736,2.96748,1805.6,1805.5,0.75177765]
[1743855359945,2.96748,1805.6,1805.5,0.00829233]
[1743855360141,2.96748,1805.6,1805.5,0.7517557]
[1743855360341,2.96748,1805.6,1805.5,0.00829233]
[1743855361549,2.96748,1805.6,1805.5,0.78391233]
[1743855364350,2.22128,1805.6,1805.5,1.52727634]
[1743855364644,2.22128,1805.6,1805.5,2.26157634]
[1743855365442,2.22128,1805.6,1805.5,1.48595634]
[1743855365646,2.22128,1805.6,1805.5,2.26157634]
[1743855365839,2.22128,1805.6,1805.5,2.26160716]
[1743855367543,2.22128,1805.6,1805.5,1.51821233]
[1743855367740,2.22128,1805.6,1805.5,1.48605772]
[1743855367948,2.22128,1805.6,1805.5,0.00829233]
[1743855371144,4.72128,1805.6,1805.5,0.00829233]
[1743855371349,7.92908,1805.6,1805.5,0.00829233]
[1743855372247,5.42908,1805.6,1805.5,0.00829233]
[1743855373747,5.42908,1805.6,1805.0,3.68731]
[1743855373748,0.77578,1805.2,1805.0,3.68731]
[1743855374048,2.28239,1805.1,1805.0,6.89511]
[1743855374253,2.28239,1805.1,1805.0,7.6383393]
[1743855374254,1.5066,1805.1,1805.0,7.6383393]
[1743855375246,2.28239,1805.1,1805.0,6.8832393]
[1743855375447,2.28239,1805.1,1805.0,2.2338393]
[1743855376154,2.28239,1805.1,1805.0,1.49061]
[1743855376551,2.28239,1805.1,1805.0,2.23362885]
[1743855377356,2.28239,1805.1,1805.0,1.49061]
[1743855378260,1.5066,1805.1,1805.0,2.23349736]
[1743855378454,0.77577,1805.2,1805.0,3.70658736]
[1743855378653,0.77577,1805.2,1805.1,1.5387]
[1743855379859,0.77577,1805.2,1805.1,2.31449]
[1743855380055,0.77577,1805.2,1805.1,1.5387]
[1743855380447,1.4708,1805.3,1805.1,2.31449]
[1743855380759,0.77575,1805.2,1805.1,2.31449]
[1743855381058,0.77575,1805.2,1805.1,1.5387]
[1743855381559,0.77575,1805.2,1805.1,2.31449]
[1743855381866,0.77575,1805.2,1805.1,1.5387]
[1743855382459,0.77575,1805.2,1805.1,2.31449]
[1743855382659,0.77575,1805.2,1805.1,2.28129087]
[1743855382862,0.77575,1805.2,1805.1,3.05708087]
[1743855383054,0.77575,1805.2,1805.1,2.28129087]
[1743855384155,0.77575,1805.2,1805.1,3.05709693]
[1743855384763,0.77575,1805.2,1805.1,2.28130693]
[1743855386762,0.77579,1805.1,1805.0,1.4906]
[1743855386959,1.4579,1805.1,1805.0,2.2333622]
[1743855387363,2.23369,1805.1,1805.0,2.2333622]
[1743855387764,1.4579,1805.1,1805.0,2.2333622]
[1743855388458,1.4579,1805.1,1805.0,3.6471622]
[1743855389368,1.4579,1805.1,1805.0,3.64719927]
[1743855391160,1.4579,1805.1,1805.0,2.9044]
[1743855391464,1.4579,1805.1,1805.0,3.64725841]
[1743855392762,0.77574,1805.3,1805.1,0.77579]
[1743855392962,3.2078,1805.6,1805.3,0.77568]
[1743855393162,1.53644,1805.5,1805.3,0.77568]
[1743855393367,1.5072,1805.5,1805.4,1.48436]
[1743855393669,2.28282,1805.5,1805.4,0.7087]
[1743855393966,0.77568,1805.4,1805.2,2.20852]
[1743855394168,1.5072,1805.3,1805.2,2.91722]
[1743855394467,1.5072,1805.3,1805.2,3.66028417]
[1743855394860,1.5072,1805.3,1805.2,3.66028443]
[1743855396865,1.5072,1805.3,1805.2,3.6606197]
[1743855397066,0.77565,1805.5,1805.3,0.77571]
[1743855397269,2.21242,1805.5,1805.4,2.21363265]
[1743855397460,2.21242,1805.5,1805.4,2.96163265]
[1743855398064,2.21242,1805.5,1805.4,2.96162862]
[1743855399464,1.4368,1805.5,1805.4,2.96162862]
[1743855400070,2.21242,1805.5,1805.4,2.96162862]
[1743855400271,2.21242,1805.5,1805.4,2.96151297]
[1743855402170,2.21242,1805.5,1805.4,2.96144514]
[1743855402370,1.4368,1805.5,1805.2,1.48442]
[1743855402574,2.28896,1805.4,1805.3,0.74329005]
[1743855403173,2.28896,1805.4,1805.3,1.51900005]
[1743855403375,2.28896,1805.4,1805.3,2.19849005]
[1743855403972,2.28896,1805.4,1805.3,2.19842319]
[1743855404676,2.28896,1805.4,1805.3,2.97413319]
[1743855405174,2.28896,1805.4,1805.3,2.19842319]
[1743855405372,2.28896,1805.4,1805.3,2.97413319]
[1743855405568,2.28896,1805.4,1805.3,2.19842319]
[1743855405771,2.28896,1805.4,1805.3,2.19836645]
[1743855406071,2.28896,1805.4,1805.3,2.97407645]
[1743855406478,1.5133,1805.4,1805.3,2.97407645]
[1743855406871,0.77565,1805.5,1805.3,2.97407645]
[1743855407072,0.77565,1805.5,1805.4,2.27466645]
[1743855407579,0.77565,1805.5,1805.4,2.27471005]
[1743855407782,2.24725,1805.5,1805.4,2.27471005]
[1743855409381,2.24725,1805.5,1805.4,2.27470847]
[1743855410980,2.24725,1805.5,1805.4,1.5315]
[1743855411184,2.24725,1805.5,1805.4,2.27471136]
[1743855411681,2.24725,1805.5,1805.4,1.5315]
[1743855411882,2.24725,1805.5,1805.4,2.27472478]
[1743855414782,2.24725,1805.5,1805.4,1.5315]
[1743855414983,2.24725,1805.5,1805.4,2.27475542]
[1743855416688,2.24725,1805.5,1805.4,2.27481833]
[1743855419294,2.24725,1805.5,1805.4,3.05047833]
[1743855419588,2.24725,1805.5,1805.4,2.27481833]
[1743855420290,2.24725,1805.5,1805.4,2.27544777]
[1743855421188,2.24725,1805.5,1805.4,0.74394777]
[1743855421786,7.1794,1805.5,1804.9,40.8]
[1743855421995,0.77582,1805.1,1805.0,1.27094701]
[1743855422195,0.77582,1805.1,1805.0,1.27093466]
[1743855422398,0.77582,1805.1,1805.0,0.74412773]
[1743855422692,1.4548,1805.3,1805.0,0.74412773]
[1743855422693,0.77578,1805.2,1805.0,1.51996773]
[1743855422886,1.4548,1805.1,1805.0,1.51414]
[1743855423084,1.4548,1805.1,1805.0,2.25824732]
[1743855423494,1.4548,1805.1,1805.0,2.2582353]
[1743855423700,2.1982,1805.1,1805.0,1.4823953]
[1743855424595,2.97399,1805.1,1805.0,1.4823953]
[1743855425895,2.97399,1805.1,1805.0,2.2582353]
[1743855426086,2.97399,1805.1,1805.0,1.4823953]
[1743855426984,2.97399,1805.1,1805.0,1.48184701]
[1743855427694,1.4548,1805.1,1805.0,2.25768701]
[1743855427895,1.4548,1805.1,1805.0,4.53218701]
[1743855428197,1.4548,1805.1,1805.0,7.73998701]
[1743855428794,0.77577,1805.2,1805.1,0.77579]
[1743855428994,2.28027,1805.2,1805.1,1.51933701]
[1743855429594,2.28027,1805.2,1805.1,0.74354701]
[1743855430491,2.28027,1805.2,1805.1,1.51933701]
[1743855430693,2.28027,1805.2,1805.1,3.05724629]
[1743855430994,1.5045,1805.2,1805.1,3.05724629]
[1743855431492,1.4815,1805.4,1805.2,0.77575]
[1743855431698,2.9465,1805.4,1805.3,1.45225629]
[1743855432295,1.465,1805.4,1805.3,2.22796629]
[1743855432590,2.24066,1805.4,1805.3,3.71885629]
[1743855433593,2.24066,1805.4,1805.3,1.45225629]
[1743855435992,2.24066,1805.4,1805.2,7.49852]
[1743855436296,3.01191,1805.3,1805.2,6.7228]
[1743855436497,3.01191,1805.3,1805.2,7.46619397]
[1743855436692,3.01191,1805.3,1805.2,8.24194397]
[1743855436899,0.77575,1805.2,1805.1,0.7525]
[1743855437099,2.25075,1805.2,1805.1,1.49593676]
[1743855437992,2.25075,1805.2,1805.1,2.27172364]
[1743855438192,2.25075,1805.2,1805.1,1.49593364]
[1743855438394,2.25075,1805.2,1805.1,2.27172364]
[1743855439704,2.25075,1805.2,1805.1,2.27174273]
[1743855439904,2.25075,1805.2,1805.1,2.27173885]
[1743855440704,2.25075,1805.2,1805.1,1.49594885]
[1743855441007,2.96775,1805.2,1805.1,2.27173885]
[1743855441704,2.96775,1805.2,1805.1,2.27180894]
[1743855442705,2.96775,1805.2,1805.1,1.49601894]
[1743855442916,2.96775,1805.2,1805.1,0.74351894]
[1743855443407,2.96775,1805.2,1805.1,0.74360614]
[1743855444102,2.96775,1805.2,1805.1,1.51939614]
[1743855444309,2.96775,1805.2,1805.1,0.74360614]
[1743855444607,2.96775,1805.2,1805.1,1.51939614]
[1743855445408,2.96775,1805.2,1805.1,0.74371]
[1743855445609,2.96775,1805.2,1805.1,1.5195]
[1743855447110,2.96775,1805.2,1805.1,0.74371]
[1743855447411,2.96775,1805.2,1805.1,1.5195]
[1743855448915,2.96775,1805.2,1805.1,1.519737]
[1743855450403,2.96775,1805.2,1805.1,0.743947]
[1743855450715,2.96775,1805.2,1805.1,0.74410767]
[1743855451511,2.96775,1805.2,1805.1,1.51989767]
[1743855452515,2.96775,1805.2,1805.1,1.51990635]
[1743855454317,2.96775,1805.2,1805.1,1.51992797]
[1743855455721,2.96775,1805.2,1805.1,0.74413797]
[1743855455922,2.96775,1805.2,1805.1,1.51992797]
[1743855456417,2.192,1805.2,1805.1,1.51992797]
[1743855456621,0.77568,1805.4,1805.2,0.77575]
[1743855456923,2.23938,1805.4,1805.3,3.70374797]
[1743855457124,1.4637,1805.4,1805.3,2.92803797]
[1743855457323,1.4637,1805.4,1805.3,3.70374797]
[1743855457923,1.4637,1805.4,1805.3,2.95961]
[1743855458127,1.4637,1805.4,1805.3,3.70366461]
[1743855458628,2.21542,1805.6,1805.4,0.77564]
[1743855458829,0.77564,1805.5,1805.4,1.4765]
[1743855459023,0.77564,1805.5,1805.4,2.22045099]
[1743855459024,2.27154,1805.5,1805.4,2.22045099]
[1743855460829,2.27154,1805.5,1805.4,2.99611099]
[1743855461229,2.27154,1805.5,1805.4,2.22045099]
[1743855462226,2.27154,1805.5,1805.4,1.4765]
[1743855462426,2.27154,1805.5,1805.4,2.22023932]
[1743855463340,0.77566,1805.4,1805.3,0.7074]
[1743855463538,2.16666,1805.4,1805.3,1.45116585]
[1743855463934,0.77572,1805.3,1805.1,0.77579]
[1743855464141,1.391,1805.2,1805.1,0.77579]
[1743855464339,1.391,1805.2,1805.1,2.98057685]
[1743855465043,1.391,1805.2,1805.1,3.50697528]
[1743855465642,1.391,1805.2,1805.1,2.98057685]
[1743855467740,1.54412,1805.3,1805.1,2.98057685]
[1743855467938,0.77572,1805.3,1805.2,0.74378685]
[1743855468343,2.30912,1805.3,1805.2,0.74378685]
[1743855468836,1.5334,1805.3,1805.2,1.51953685]
[1743855469039,2.30911,1805.3,1805.2,0.74378685]
[1743855469746,1.5334,1805.3,1805.2,1.51953685]
[1743855470747,1.5334,1805.3,1805.2,1.51957154]
[1743855472443,1.5334,1805.3,1805.2,0.77575]
[1743855472647,1.5334,1805.3,1805.2,1.51957221]
[1743855473949,1.5334,1805.3,1805.2,4.72737221]
[1743855475353,0.77565,1805.5,1805.3,0.77571]
[1743855475552,2.91875,1805.5,1805.4,1.45312221]
[1743855475851,1.3928,1805.5,1805.4,2.22878221]
[1743855476053,3.2078,1805.7,1805.6,0.77558]
[1743855476251,4.6006,1805.7,1805.6,0.77558]
[1743855476455,4.6006,1805.7,1805.5,2.23699]
[1743855476954,4.6006,1805.7,1805.6,0.77558]
[1743855477254,4.6006,1805.7,1805.6,2.18088]
[1743855477656,4.6006,1805.7,1805.6,2.92437858]
[1743855478055,4.6006,1805.7,1805.6,2.9243657]
[1743855481155,1.3928,1805.7,1805.6,2.92393922]
[1743855481355,0.00829233,1805.8,1805.7,0.77553]
[1743855481656,0.00829233,1805.8,1805.7,4.37668922]
[1743855482448,0.00829233,1805.8,1805.7,7.58448922]
[1743855482751,0.00829233,1805.8,1805.7,8.10939239]
[1743855484150,0.00829233,1805.8,1805.7,10.60939239]
[1743855484457,0.00829233,1805.8,1805.7,8.10939239]
[1743855485660,2.89765,1806.2,1806.0,0.77538]
[1743855485848,2.1223,1806.2,1806.1,0.7494]
[1743855486048,0.7051,1806.4,1806.1,0.7494]
[1743855486049,0.77521,1806.5,1806.1,4.69858535]
[1743855486354,0.77521,1806.5,1806.3,0.77527]
[1743855486551,1.4134,1806.4,1806.3,0.77527]
[1743855486754,1.4134,1806.4,1806.3,2.29457]
[1743855487156,1.4134,1806.4,1806.3,2.7338259]
[1743855487451,0.00829233,1806.5,1806.4,0.77523]
[1743855487761,0.00829233,1806.5,1806.4,3.03471877]
[1743855488555,0.00829233,1806.5,1806.4,2.29453]
[1743855490660,0.00829233,1806.5,1806.4,4.29023]
[1743855492051,0.77029233,1806.5,1806.4,4.29023]
[1743855492362,0.00829233,1806.5,1806.4,4.29023]
[1743855492663,0.00829233,1806.5,1806.4,5.82413]
[1743855497971,1.4044,1806.8,1806.7,0.77511]
[1743855498173,1.4044,1806.8,1806.7,4.28811]
[1743855498578,1.4044,1806.8,1806.7,5.05331]
[1743855499370,0.75229233,1806.9,1806.8,0.77506]
[1743855499574,0.00829233,1806.9,1806.8,2.98286]